fUST/lending_fUST_20250530
["ID","MTS","AMOUNT","RATE_DAILY","PERIOD"]
[363174498,1748609455614,-430.0,0.00021917,2]
[363174499,1748609455623,-2140.63,0.00021917,2]
[363174500,1748609455633,-430.0,0.00021917,2]
[363174501,1748609455643,-1378.27,0.00021917,2]
[363174502,1748609455652,-940.85,0.00021917,2]
[363174503,1748609455662,-4666.86,0.00021917,2]
[363174504,1748609455671,-430.0,0.00021917,2]
[363174505,1748609455683,-674.97,0.00021917,2]
[363174506,1748609455693,-430.0,0.00021917,2]
[363174507,1748609455703,-483.68,0.00021917,2]
[363174508,1748609455712,-510.09,0.00021917,2]
[363174509,1748609455723,-2216.44,0.00021917,2]
[363174510,1748609455732,-806.71,0.00021917,2]
[363174511,1748609455742,-643.55,0.00021917,2]
[363174512,1748609455751,-1572.01,0.00021917,2]
[363174513,1748609455761,-3998.41,0.00021917,2]
[363174514,1748609455770,-453.29,0.00021917,2]
[363174515,1748609455779,-1322.02,0.00021917,2]
[363174516,1748609455789,-6232.04,0.00021917,2]
[363174517,1748609455798,-535.86,0.00021917,2]
[363174518,1748609455808,-453.44,0.00021917,2]
[363174519,1748609455817,-430.0,0.00021917,2]
[363174520,1748609455827,-601.27,0.00021917,2]
[363174521,1748609455838,-687.17,0.00021917,2]
[363174522,1748609455847,-817.33,0.00021917,2]
[363174523,1748609455857,-430.0,0.00021917,2]
[363174524,1748609455866,-5958.29,0.00021917,2]
[363174525,1748609455876,-634.0,0.00021917,2]
[363174526,1748609455886,-430.0,0.00021917,2]
[363174527,1748609455895,-846.26,0.00021917,2]
[363174528,1748609455906,-430.0,0.00021917,2]
[363174529,1748609455915,-898.65,0.00021917,2]
[363174530,1748609455926,-888.2,0.00021917,2]
[363174531,1748609455936,-1075.5,0.00021917,2]
[363174532,1748609455946,-644.12,0.00021917,2]
[363174533,1748609455956,-430.0,0.00021917,2]
[363174534,1748609455966,-430.0,0.00021917,2]
[363174535,1748609455976,-4652.48,0.00021917,2]
[363174536,1748609455986,-675.1,0.00021917,2]
[363174537,1748609455996,-1421.13,0.00021917,2]
[363174538,1748609456006,-3397.81,0.00021917,2]
[363174539,1748609456016,-871.23,0.00021917,2]
[363174540,1748609456026,-430.0,0.00021917,2]
[363174541,1748609456035,-1965.23,0.00021917,2]
[363174542,1748609456044,-938.36,0.00021917,2]
[363174543,1748609456054,-430.0,0.00021917,2]
[363174544,1748609456064,-4550.06,0.00021917,2]
[363174545,1748609456074,-500.0,0.00021917,2]
[363174546,1748609456084,-500.0,0.00021917,2]
[363174547,1748609456094,-500.0,0.00021917,2]
[363174548,1748609456103,-500.0,0.00021917,2]
[363174549,1748609456113,-500.0,0.00021917,2]
[363174550,1748609456123,-396.71207405,0.00021917,2]
[363174551,1748609456132,-1261.25,0.00021917,2]
[363174552,1748609456142,-1022.29,0.00021917,2]
[363174553,1748609456151,-541.22,0.00021917,2]
[363174554,1748609456163,-1016.79,0.00021917,2]
[363174555,1748609456176,-430.0,0.00021917,2]
[363174556,1748609456186,-430.0,0.00021917,2]
[363174557,1748609456208,-430.0,0.00021917,2]
[363174558,1748609456236,-475.13,0.00021917,2]
[363174559,1748609456246,-1673.97,0.00021917,2]
[363174560,1748609456257,-2156.88,0.00021917,2]
[363174561,1748609456267,-431.52,0.00021917,2]
[363174562,1748609456277,-646.77,0.00021917,2]
[363174563,1748609456287,-430.0,0.00021917,2]
[363174564,1748609456297,-2441.53,0.00021917,2]
[363174565,1748609456308,-430.0,0.00021917,2]
[363174566,1748609456317,-1350.07,0.00021917,2]
[363174567,1748609456327,-430.0,0.00021917,2]
[363174568,1748609456337,-3081.68,0.00021917,2]
[363174569,1748609456348,-2025.32,0.00021917,2]
[363174570,1748609456357,-659.88,0.00021917,2]
[363174571,1748609456367,-611.27,0.00021917,2]
[363174572,1748609456377,-430.0,0.00021917,2]
[363174573,1748609456387,-262.19315008,0.00021918,2]
[363174574,1748609456397,-153.0,0.00021918,2]
[363174575,1748609456408,-153.0,0.00021918,2]
[363174576,1748609456417,-153.0,0.00021918,2]
[363174577,1748609456431,-153.0,0.00021918,2]
[363174578,1748609456441,-153.0,0.00021918,2]
[363174579,1748609456451,-153.0,0.00021918,2]
[363174580,1748609456463,-153.0,0.00021918,2]
[363174581,1748609456472,-153.0,0.00021918,2]
[363174582,1748609456488,-153.0,0.00021918,2]
[363174583,1748609456505,-153.0,0.00021918,2]
[363174584,1748609456517,-153.0,0.00021918,2]
[363174585,1748609456530,-153.0,0.00021918,2]
[363174586,1748609456540,-153.0,0.00021918,2]
[363174587,1748609456550,-153.0,0.00021918,2]
[363174588,1748609456561,-153.0,0.00021918,2]
[363174589,1748609456570,-153.0,0.00021918,2]
[363174590,1748609456580,-153.0,0.00021918,2]
[363174591,1748609456590,-153.0,0.00021918,2]
[363174592,1748609456599,-153.0,0.00021918,2]
[363174593,1748609456608,-153.0,0.00021918,2]
[363174594,1748609456618,-153.0,0.00021918,2]
[363174595,1748609456628,-153.0,0.00021918,2]
[363174596,1748609456637,-153.0,0.00021918,2]
[363174597,1748609456647,-153.0,0.00021918,2]
[363174598,1748609456656,-153.0,0.00021918,2]
[363174599,1748609456666,-153.0,0.00021918,2]
[363174600,1748609456677,-153.0,0.00021918,2]
[363174601,1748609456687,-153.0,0.00021918,2]
[363174602,1748609456696,-153.0,0.00021918,2]
[363174603,1748609456705,-153.0,0.00021918,2]
[363174604,1748609456715,-153.0,0.00021918,2]
[363174605,1748609456724,-153.0,0.00021918,2]
[363174606,1748609456734,-153.0,0.00021918,2]
[363174607,1748609456743,-153.0,0.00021918,2]
[363174608,1748609456753,-153.0,0.00021918,2]
[363174609,1748609456763,-153.0,0.00021918,2]
[363174610,1748609456773,-153.0,0.00021918,2]
[363174611,1748609456782,-153.0,0.00021918,2]
[363174612,1748609456792,-153.0,0.00021918,2]
[363174613,1748609456802,-153.0,0.00021918,2]
[363174614,1748609456812,-153.0,0.00021918,2]
[363174615,1748609456822,-153.0,0.00021918,2]
[363174616,1748609456832,-153.0,0.00021918,2]
[363174617,1748609456843,-153.0,0.00021918,2]
[363174618,1748609456853,-153.0,0.00021918,2]
[363174619,1748609456862,-153.0,0.00021918,2]
[363174620,1748609456872,-153.0,0.00021918,2]
[363174621,1748609456882,-153.0,0.00021918,2]
[363174622,1748609456892,-153.0,0.00021918,2]
[363174623,1748609456901,-153.0,0.00021918,2]
[363174624,1748609456911,-153.0,0.00021918,2]
[363174625,1748609456921,-153.0,0.00021918,2]
[363174626,1748609456934,-153.0,0.00021918,2]
[363174627,1748609456944,-153.0,0.00021918,2]
[363174628,1748609456954,-153.0,0.00021918,2]
[363174629,1748609456964,-153.0,0.00021918,2]
[363174630,1748609456973,-153.0,0.00021918,2]
[363174631,1748609456983,-158.1746953,0.00021918,2]
[363174632,1748609456993,-170.0,0.00021918,2]
[363174633,1748609457002,-170.0,0.00021918,2]
[363174634,1748609457012,-170.0,0.00021918,2]
[363174635,1748609457022,-170.0,0.00021918,2]
[363174636,1748609457032,-170.0,0.00021918,2]
[363174637,1748609457042,-175.14871542,0.00021918,2]
[363174638,1748609457052,-4583.06672459,0.00021924,2]
[363174639,1748609457061,-169.31565096,0.00021945,2]
[363174640,1748609457072,-4608.15476834,0.00021969,6]
[363174641,1748609457081,-500.0,0.00021973,2]
[363174642,1748609457091,-296.4592151,0.00021973,2]
[363174643,1748609457101,-500.0,0.00021973,2]
[363174644,1748609457111,-501.41293742,0.00021973,2]
[363174645,1748609457120,-500.0,0.00021973,2]
[363174646,1748609457130,-500.0,0.00021973,2]
[363174647,1748609457140,-500.0,0.00021973,2]
[363174648,1748609457150,-500.0,0.00021973,2]
[363174649,1748609457160,-500.0,0.00021973,2]
[363174650,1748609457170,-399.05799723,0.00021973,2]
[363174651,1748609457183,-500.0,0.00021973,2]
[363174652,1748609457193,-500.73940826,0.00021973,2]
[363174653,1748609457202,-500.0,0.00021973,2]
[363174654,1748609457212,-260.16001384,0.00021973,2]
[363174655,1748609457222,-500.0,0.00021973,2]
[363174656,1748609457232,-160.16383769,0.00021973,2]
[363174657,1748609457242,-500.0,0.00021973,2]
[363174658,1748609457252,-500.0,0.00021973,2]
[363174659,1748609457265,-434.96903888,0.00021973,2]
[363174660,1748609457275,-500.0,0.00021973,2]
[363174661,1748609457286,-500.0,0.00021973,2]
[363174662,1748609457296,-500.0,0.00021973,2]
[363174663,1748609457306,-500.0,0.00021973,2]
[363174664,1748609457315,-158.66588921,0.00021973,2]
[363174665,1748609457324,-341.46195536,0.00021973,2]
[363174666,1748609457334,-160.15343853,0.00021973,2]
[363174667,1748609457344,-163.68044331,0.00021973,2]
[363174668,1748609457354,-400.31683951,0.00021973,2]
[363174669,1748609457364,-500.0,0.00021973,2]
[363174670,1748609457373,-500.0,0.00021973,2]
[363174671,1748609457383,-500.0,0.00021973,2]
[363174672,1748609457393,-500.0,0.00021973,2]
[363174673,1748609457403,-500.0,0.00021973,2]
[363174674,1748609457412,-500.0,0.00021973,2]
[363174675,1748609457423,-478.90915414,0.00021973,2]
[363174676,1748609457436,-500.0,0.00021973,2]
[363174677,1748609457446,-525.58676027,0.00021973,2]
[363174678,1748609457456,-500.0,0.00021973,2]
[363174679,1748609457466,-160.16771717,0.00021973,2]
[363174680,1748609457477,-160.16834258,0.00021973,2]
[363174681,1748609457489,-500.0,0.00021973,2]
[363174682,1748609457498,-500.0,0.00021973,2]
[363174683,1748609457508,-500.0,0.00021973,2]
[363174684,1748609457518,-500.0,0.00021973,2]
[363174685,1748609457529,-500.0,0.00021973,2]
[363174686,1748609457539,-500.0,0.00021973,2]
[363174687,1748609457549,-500.0,0.00021973,2]
[363174688,1748609457560,-500.0,0.00021973,2]
[363174689,1748609457570,-271.63902336,0.00021973,2]
[363174690,1748609457580,-500.0,0.00021973,2]
[363174691,1748609457590,-500.0,0.00021973,2]
[363174692,1748609457601,-239.8002961,0.00021973,2]
[363174693,1748609457610,-500.0,0.00021973,2]
[363174694,1748609457620,-500.48097815,0.00021973,2]
[363174695,1748609457629,-500.0,0.00021973,2]
[363174696,1748609457639,-500.0,0.00021973,2]
[363174697,1748609457648,-500.0,0.00021973,2]
[363174698,1748609457658,-500.0,0.00021973,2]
[363174699,1748609457668,-500.69718326,0.00021973,2]
[363174700,1748609457682,-500.0,0.00021973,2]
[363174701,1748609457692,-501.12813567,0.00021973,2]
[363174702,1748609457702,-500.0,0.00021973,2]
[363174703,1748609457713,-500.0,0.00021973,2]
[363174704,1748609457722,-600.0,0.00021973,2]
[363174705,1748609457732,-272.15343245,0.00021973,2]
[363174706,1748609457742,-500.0,0.00021973,2]
[363174707,1748609457752,-500.69379208,0.00021973,2]
[363174708,1748609457761,-160730.29,0.00022,7]
[363174709,1748609457771,-11099.0,0.00022,2]
[363174710,1748609457781,-1999.86,0.00022,7]
[363174711,1748609457791,-6428.2,0.00022,7]
[363174712,1748609457801,-77055.22,0.00022,2]
[363174713,1748609457913,-350.22822349,0.00022,2]
[363174714,1748609457923,-11481.86102467,0.00022,2]
[363174715,1748609457935,-146922.94345314,0.00022,2]
[363174716,1748609457945,-8117.21135646,0.00022,2]
[363174717,1748609457955,-51621.71431466,0.00022,7]
[363174718,1748609457966,-1000.0,0.00022,2]
[363174719,1748609457975,-5000.0,0.00022,2]
[363174720,1748609457986,-5000.0,0.00022,2]
[363174721,1748609457996,-5000.0,0.00022,2]
[363174722,1748609458006,-4761.0,0.00022,2]
[363174723,1748609458016,-212.7380601,0.00022,7]
[363174724,1748609458026,-12663.11115519,0.00022,7]
[363174725,1748609458036,-842.5625,0.00022,7]
[363174726,1748609458045,-171.0,0.00022,2]
[363174727,1748609458054,-249.0,0.00022,2]
[363174728,1748609458063,-169.31565096,0.00022055,2]
[363174729,1748609458073,-4118.2,0.00022071,15]
[363174730,1748609458082,-2176.89934839,0.00022098,14]
[363174731,1748609458091,-223.0315306,0.00022125,2]
[363174732,1748609458100,-5000.0,0.00022127,2]
[363174733,1748609458109,-4885.97,0.00022135,2]
[363174734,1748609458119,-4608.15476834,0.00022141,6]
[363174735,1748609458128,-169.31565096,0.00022164,2]
[363174736,1748609458138,-200.0,0.00022191,30]
[363174737,1748609458148,-430.0,0.00022191,2]
[363174738,1748609458157,-774.98,0.00022191,2]
[363174739,1748609458167,-670.78,0.00022191,2]
[363174740,1748609458177,-430.0,0.00022191,2]
[363174741,1748609458189,-430.0,0.00022191,2]
[363174742,1748609458199,-624.65,0.00022191,2]
[363174743,1748609458209,-430.0,0.00022191,2]
[363174744,1748609458219,-500.0,0.00022191,2]
[363174745,1748609458229,-430.0,0.00022191,2]
[363174746,1748609458239,-1175.6,0.00022191,2]
[363174747,1748609458249,-488.80963574,0.00022191,2]
[363174748,1748609458258,-2140.63,0.00022191,2]
[363174749,1748609458268,-430.0,0.00022191,2]
[363174750,1748609458278,-1378.27,0.00022191,2]
[363174751,1748609458288,-940.85,0.00022191,2]
[363174752,1748609458298,-4666.86,0.00022191,2]
[363174753,1748609458308,-430.0,0.00022191,2]
[363174754,1748609458318,-674.97,0.00022191,2]
[363174755,1748609458328,-430.0,0.00022191,2]
[363174756,1748609458337,-483.68,0.00022191,2]
[363174757,1748609458346,-510.09,0.00022191,2]
[363174758,1748609458356,-2216.44,0.00022191,2]
[363174759,1748609458366,-806.71,0.00022191,2]
[363174760,1748609458376,-643.55,0.00022191,2]
[363174761,1748609458385,-1572.01,0.00022191,2]
[363174762,1748609458395,-3998.41,0.00022191,2]
[363174763,1748609458405,-453.29,0.00022191,2]
[363174764,1748609458415,-1322.02,0.00022191,2]
[363174765,1748609458425,-6232.04,0.00022191,2]
[363174766,1748609458439,-535.86,0.00022191,2]
[363174767,1748609458450,-453.44,0.00022191,2]
[363174768,1748609458459,-430.0,0.00022191,2]
[363174769,1748609458469,-601.27,0.00022191,2]
[363174770,1748609458482,-687.17,0.00022191,2]
[363174771,1748609458492,-817.33,0.00022191,2]
[363174772,1748609458501,-430.0,0.00022191,2]
[363174773,1748609458511,-5958.29,0.00022191,2]
[363174774,1748609458521,-634.0,0.00022191,2]
[363174775,1748609458530,-292.2053654,0.00022191,2]
[363174776,1748609458540,-846.26,0.00022191,2]
[363174777,1748609458549,-430.0,0.00022191,2]
[363174778,1748609458559,-898.65,0.00022191,2]
[363174779,1748609458569,-888.2,0.00022191,2]
[363174780,1748609458579,-1075.5,0.00022191,2]
[363174781,1748609458588,-644.12,0.00022191,2]
[363174782,1748609458598,-430.0,0.00022191,2]
[363174783,1748609458607,-430.0,0.00022191,2]
[363174784,1748609458616,-4652.48,0.00022191,2]
[363174785,1748609458626,-675.1,0.00022191,2]
[363174786,1748609458635,-1421.13,0.00022191,2]
[363174787,1748609458645,-3397.81,0.00022191,2]
[363174788,1748609458654,-871.23,0.00022191,2]
[363174789,1748609458663,-229.78,0.00022191,2]
[363174790,1748609458672,-1965.23,0.00022191,2]
[363174791,1748609458685,-938.36,0.00022191,2]
[363174792,1748609458695,-430.0,0.00022191,2]
[363174793,1748609458705,-4550.06,0.00022191,2]
[363174794,1748609458715,-1261.25,0.00022191,2]
[363174795,1748609458724,-1022.29,0.00022191,2]
[363174796,1748609458733,-541.22,0.00022191,2]
[363174797,1748609458743,-1016.79,0.00022191,2]
[363174798,1748609458752,-430.0,0.00022191,2]
[363174799,1748609458761,-430.0,0.00022191,2]
[363174800,1748609458770,-430.0,0.00022191,2]
[363174801,1748609458780,-475.13,0.00022191,2]
[363174802,1748609458789,-1673.97,0.00022191,2]
[363174803,1748609458799,-2156.88,0.00022191,2]
[363174804,1748609458809,-431.52,0.00022191,2]
[363174805,1748609458818,-646.77,0.00022191,2]
[363174806,1748609458827,-430.0,0.00022191,2]
[363174807,1748609458837,-2441.53,0.00022191,2]
[363174808,1748609458847,-430.0,0.00022191,2]
[363174809,1748609458856,-1350.07,0.00022191,2]
[363174810,1748609458866,-430.0,0.00022191,2]
[363174811,1748609458875,-3081.68,0.00022191,2]
[363174812,1748609458885,-2025.32,0.00022191,2]
[363174813,1748609458894,-659.88,0.00022191,2]
[363174814,1748609458904,-611.27,0.00022191,2]
[363174815,1748609458914,-491.81988609,0.00022191,2]
[363174816,1748609458923,-249.0,0.00022192,7]
[363174817,1748609458934,-151.47913357,0.00022195,2]
[363174818,1748609458944,-224.263645,0.00022237,2]
[363174819,1748609458954,-808.51673417,0.0002224,2]
[363174820,1748609458964,-2500.0,0.0002224,2]
[363174821,1748609458974,-2520.18265364,0.0002224,2]
[363174822,1748609458983,-169.31565096,0.00022274,2]
[363174823,1748609458993,-4583.06672459,0.000223,2]
[363174824,1748609459002,-4608.15476834,0.00022314,7]
[363174825,1748609459012,-2176.89934839,0.00022341,16]
[363174826,1748609459022,-1508.98,0.00022388,2]
[363174827,1748609459031,-512.17,0.000224,14]
[363174828,1748609459041,-512.1655,0.000224,14]
[363174829,1748609459051,-587.0,0.00022463,2]
[363174830,1748609459060,-200.0,0.00022465,30]
[363174831,1748609459070,-500.0,0.00022465,2]
[363174832,1748609459079,-430.0,0.00022465,2]
[363174833,1748609459088,-774.98,0.00022465,2]
[363174834,1748609459097,-670.78,0.00022465,2]
[363174835,1748609459107,-430.0,0.00022465,2]
[363174836,1748609459116,-228.89632081,0.00022465,2]
[363174837,1748609459126,-624.65,0.00022465,2]
[363174838,1748609459135,-430.0,0.00022465,2]
[363174839,1748609459144,-500.0,0.00022465,2]
[363174840,1748609459153,-430.0,0.00022465,2]
[363174841,1748609459162,-1175.6,0.00022465,2]
[363174842,1748609459171,-264.5,0.00022465,2]
[363174843,1748609459185,-264.5,0.00022465,2]
[363174844,1748609459195,-264.5,0.00022465,2]
[363174845,1748609459204,-264.5,0.00022465,2]
[363174846,1748609459214,-264.5,0.00022465,2]
[363174847,1748609459224,-264.5,0.00022465,2]
[363174848,1748609459234,-264.5,0.00022465,2]
[363174849,1748609459244,-264.5,0.00022465,2]
[363174850,1748609459254,-264.5,0.00022465,2]
[363174851,1748609459264,-264.5,0.00022465,2]
[363174852,1748609459274,-264.5,0.00022465,2]
[363174853,1748609459284,-264.5,0.00022465,2]
[363174854,1748609459293,-264.5,0.00022465,2]
[363174855,1748609459303,-2140.63,0.00022465,2]
[363174856,1748609459313,-430.0,0.00022465,2]
[363174857,1748609459322,-1378.27,0.00022465,2]
[363174858,1748609459332,-940.85,0.00022465,2]
[363174859,1748609459342,-4666.86,0.00022465,2]
[363174860,1748609459351,-430.0,0.00022465,2]
[363174861,1748609459361,-674.97,0.00022465,2]
[363174862,1748609459371,-430.0,0.00022465,2]
[363174863,1748609459380,-483.68,0.00022465,2]
[363174864,1748609459390,-510.09,0.00022465,2]
[363174865,1748609459399,-2216.44,0.00022465,2]
[363174866,1748609459408,-806.71,0.00022465,2]
[363174867,1748609459417,-643.55,0.00022465,2]
[363174868,1748609459427,-1572.01,0.00022465,2]
[363174869,1748609459439,-3998.41,0.00022465,2]
[363174870,1748609459449,-453.29,0.00022465,2]
[363174871,1748609459459,-1322.02,0.00022465,2]
[363174872,1748609459469,-6232.04,0.00022465,2]
[363174873,1748609459481,-535.86,0.00022465,2]
[363174874,1748609459491,-453.44,0.00022465,2]
[363174875,1748609459500,-430.0,0.00022465,2]
[363174876,1748609459508,-601.27,0.00022465,2]
[363174877,1748609459518,-687.17,0.00022465,2]
[363174878,1748609459527,-817.33,0.00022465,2]
[363174879,1748609459536,-430.0,0.00022465,2]
[363174880,1748609459545,-5958.29,0.00022465,2]
[363174881,1748609459554,-634.0,0.00022465,2]
[363174882,1748609459566,-846.26,0.00022465,2]
[363174883,1748609459575,-430.0,0.00022465,2]
[363174884,1748609459585,-898.65,0.00022465,2]
[363174885,1748609459594,-888.2,0.00022465,2]
[363174886,1748609459603,-1075.5,0.00022465,2]
[363174887,1748609459612,-644.12,0.00022465,2]
[363174888,1748609459621,-484.40671104,0.00022465,2]
[363174889,1748609459630,-430.0,0.00022465,2]
[363174890,1748609459639,-4652.48,0.00022465,2]
[363174891,1748609459649,-675.1,0.00022465,2]
[363174892,1748609459657,-1421.13,0.00022465,2]
[363174893,1748609459666,-3397.81,0.00022465,2]
[363174894,1748609459675,-871.23,0.00022465,2]
[363174895,1748609459686,-1965.23,0.00022465,2]
[363174896,1748609459694,-938.36,0.00022465,2]
[363174897,1748609459702,-430.0,0.00022465,2]
[363174898,1748609459708,-1261.25,0.00022465,2]
[363174899,1748609459717,-1022.29,0.00022465,2]
[363174900,1748609459727,-4550.06,0.00022465,2]
[363174901,1748609459736,-541.22,0.00022465,2]
[363174902,1748609459746,-1016.79,0.00022465,2]
[363174903,1748609459755,-430.0,0.00022465,2]
[363174904,1748609459765,-430.0,0.00022465,2]
[363174905,1748609459775,-430.0,0.00022465,2]
[363174906,1748609459784,-475.13,0.00022465,2]
[363174907,1748609459794,-1673.97,0.00022465,2]
[363174908,1748609459803,-2156.88,0.00022465,2]
[363174909,1748609459813,-431.52,0.00022465,2]
[363174910,1748609459822,-646.77,0.00022465,2]
[363174911,1748609459831,-430.0,0.00022465,2]
[363174912,1748609459840,-2441.53,0.00022465,2]
[363174913,1748609459849,-430.0,0.00022465,2]
[363174914,1748609459857,-1350.07,0.00022465,2]
[363174915,1748609459867,-430.0,0.00022465,2]
[363174916,1748609459876,-3081.68,0.00022465,2]
[363174917,1748609459886,-2025.32,0.00022465,2]
[363174918,1748609459895,-659.88,0.00022465,2]
[363174919,1748609459904,-611.27,0.00022465,2]
[363174920,1748609459913,-4608.15476834,0.00022486,7]
[363174921,1748609459923,-377.82367598,0.000225,2]
[363174922,1748609459935,-2000.0,0.000225,2]
[363174923,1748609459944,-19219.9478066,0.000225,7]
[363174924,1748609459954,-19219.9478066,0.000225,7]
[363174925,1748609459963,-1000.0,0.00022521,2]
[363174926,1748609459972,-502.41742539,0.00022521,2]
[363174927,1748609460083,-305.77909444,0.00022521,2]
[363174928,1748609460093,-1000.0,0.00022521,2]
[363174929,1748609460103,-1000.0,0.00022521,2]
[363174930,1748609460113,-1004.06647676,0.00022521,2]
[363174931,1748609460123,-1000.0,0.00022521,2]
[363174932,1748609460133,-430.01174775,0.00022521,2]
[363174933,1748609460143,-400.95470551,0.00022521,2]
[363174934,1748609460153,-1000.0,0.00022521,2]
[363174935,1748609460162,-1000.0,0.00022521,2]
[363174936,1748609460172,-501.99362361,0.00022521,2]
[363174937,1748609460182,-501.64985717,0.00022521,2]
[363174938,1748609460193,-569.8068838,0.00022521,2]
[363174939,1748609460203,-1000.0,0.00022521,2]
[363174940,1748609460214,-1000.0,0.00022521,2]
[363174941,1748609460224,-1000.0,0.00022521,2]
[363174942,1748609460234,-500.90026723,0.00022521,2]
[363174943,1748609460244,-1000.0,0.00022521,2]
[363174944,1748609460254,-1000.0,0.00022521,2]
[363174945,1748609460264,-1000.0,0.00022521,2]
[363174946,1748609460274,-1000.0,0.00022521,2]
[363174947,1748609460284,-500.8356264,0.00022521,2]
[363174948,1748609460294,-501.3595155,0.00022521,2]
[363174949,1748609460304,-503.14182036,0.00022521,2]
[363174950,1748609460314,-1000.0,0.00022521,2]
[363174951,1748609460324,-500.51724939,0.00022521,2]
[363174952,1748609460332,-194.82590061,0.00022521,2]
[363174953,1748609460341,-1000.0,0.00022521,2]
[363174954,1748609460350,-1000.0,0.00022521,2]
[363174955,1748609460360,-1004.24376081,0.00022521,2]
[363174956,1748609460369,-553.18874352,0.00022521,2]
[363174957,1748609460380,-1000.0,0.00022521,2]
[363174958,1748609460390,-1000.0,0.00022521,2]
[363174959,1748609460401,-1000.0,0.00022521,2]
[363174960,1748609460410,-501.90450084,0.00022521,2]
[363174961,1748609460420,-501.09491624,0.00022521,2]
[363174962,1748609460430,-500.44475395,0.00022521,2]
[363174963,1748609460441,-1000.0,0.00022521,2]
[363174964,1748609460451,-501.91113092,0.00022521,2]
[363174965,1748609460460,-715.66093043,0.00022521,2]
[363174966,1748609460470,-1200.0,0.00022521,2]
[363174967,1748609460483,-501.82857782,0.00022521,2]
[363174968,1748609460492,-2176.89934839,0.00022585,17]
[363174969,1748609460502,-4608.15476834,0.00022659,7]
[363174970,1748609460512,-5000.0,0.00022675,2]
[363174971,1748609460522,-4583.06672459,0.00022677,2]
[363174972,1748609460532,-3000.0,0.00022689,2]
[363174973,1748609460542,-160.0,0.0002271,5]
[363174974,1748609460552,-200.0,0.00022739,30]
[363174975,1748609460562,-430.0,0.00022739,2]
[363174976,1748609460572,-774.98,0.00022739,2]
[363174977,1748609460582,-670.78,0.00022739,2]
[363174978,1748609460591,-430.0,0.00022739,2]
[363174979,1748609460601,-624.65,0.00022739,2]
[363174980,1748609460610,-430.0,0.00022739,2]
[363174981,1748609460620,-500.0,0.00022739,2]
[363174982,1748609460629,-430.0,0.00022739,2]
[363174983,1748609460638,-1175.6,0.00022739,2]
[363174984,1748609460648,-264.5,0.00022739,2]
[363174985,1748609460657,-2140.63,0.00022739,2]
[363174986,1748609460666,-261.67367518,0.00022739,2]
[363174987,1748609460676,-1378.27,0.00022739,2]
[363174988,1748609460690,-940.85,0.00022739,2]
[363174989,1748609460699,-4666.86,0.00022739,2]
[363174990,1748609460708,-430.0,0.00022739,2]
[363174991,1748609460718,-674.97,0.00022739,2]
[363174992,1748609460728,-430.0,0.00022739,2]
[363174993,1748609460737,-483.68,0.00022739,2]
[363174994,1748609460747,-510.09,0.00022739,2]
[363174995,1748609460757,-2216.44,0.00022739,2]
[363174996,1748609460767,-806.71,0.00022739,2]
[363174997,1748609460777,-643.55,0.00022739,2]